[Event "4NCL Div 2 2024-25"]
[Site "England"]
[Date "2025.01.25"]
[Round "3.25"]
[White "Rees, Ioan"]
[Black "Tanmay Chopra"]
[Result "1/2-1/2"]
[Annotator "TA"]
[ECO "E16"]
[WhiteElo "2251"]
[BlackElo "2360"]
[PlyCount "57"]
[EventDate "2024.11.23"]
[EventType "team-tourn"]
[EventCountry "ENG"]
[SourceTitle "playchess.com"]
[Source "ChessBase"]
[SourceQuality "1"]
[TimeControl "40/6000+30:3000+30"]

{[%evp 14,57,5,2,27,21,36,43,60,62,73,72,66,69,77,28,35,22,34,16,22,12,14,14,20,3,3,0,22,31,29,23,38,25,23,20,21,13,37,20,87,73,78,18,25,22]} 1. d4 {[%emt 0:10:03]} Nf6 {[%emt 1:41:00]} 2. c4 {[%emt 0:00:35]} e6 {[%emt 0:00:30]} 3. g3 {[%emt 0:00:11]} d5 {[%emt 0:00:00]} 4. Bg2 {[%emt 0:00:54]} Bb4+ {[%emt 0:00:00]} 5. Nd2 {[%emt 0:00:09]} O-O {[%emt 0:00:00]} 6. Ngf3 {[%emt 0:00:04]} b6 {[%emt 0:00:00]} 7. O-O {[%emt 0:00:08]} Bb7 {[%emt 0:00:00][%cal Bc8b7,Bb7d5,Bd5e4][%mdl 32]} 8. a3 {[%emt 0:00:06]} Bd6 {[%emt 0:00:00] E16: Queen's Indian: 4 g3 Bb7 5 Bg2 Bb4+.} 9. b4 {[%emt 0:03:40]} dxc4 {[%emt 0:00:00]} 10. Nxc4 {[%emt 0:00:41]} Bd5 $146 {[%emt 0:00:00] White is slightly better.} (10... Nbd7 11. Nxd6 cxd6 12. Bf4 Qe7 13. Rc1 b5 14. Qd3 Rfb8 15. Nd2 Bxg2 16. Kxg2 Nd5 {0-1 Bardone,L (2234)-Tiviakov,S (2531) Trieste op 26th 2024 (6)}) 11. Qc2 {[%emt 0:05:50]} Be4 {[%emt 0:00:00]} 12. Qb2 {[%emt 0:00:25]} Qe8 {[%emt 0:00:00]} 13. Ncd2 {[%emt 0:06:17] [#]} Bd5 {[%emt 0:00:00]} 14. Re1 {[%emt 0:04:09]} (14. Qb1 $16) 14... Ne4 $1 $11 {[%emt 0:00:00]} 15. Nxe4 {[%emt 0:11:24]} (15. Ne5 {simplifies} Nxd2 16. Bxd2 Bxg2 17. Kxg2 Bxe5 18. dxe5 c5 19. b5) 15... Bxe4 {[%emt 0:00:00]} 16. Ng5 {[%emt 0:02:42]} Bxg2 {[%emt 0:00:00]} 17. Qb1 {[%emt 0:06:20][%csl Gg5][%cal Rb1h7] [#]} f5 $1 {[%emt 0:00:00]} 18. Kxg2 {[%emt 0:00:36] Black must now prevent Qb3.} Nc6 {[%emt 0:00:00]} 19. Qd3 {[%emt 0:07:50]} h6 {[%emt 0:00:00]} 20. Nf3 {[%emt 0:03:32]} e5 {[%emt 0:00:00]} 21. dxe5 {[%emt 0:20:07]} Nxe5 {[%emt 0:00:00]} 22. Qd5+ {[%emt 0:00:48]} Qf7 {[%emt 0:00:00]} 23. Qxf7+ {[%emt 0:03:06]} (23. Rd1 {is more complex.} Nxf3 24. Kxf3 a5 25. b5) 23... Rxf7 {[%emt 0:00:00]} 24. Bf4 {[%emt 0:02:47]} Nxf3 {[%emt 0:00:00]} 25. Kxf3 {[%emt 0:00:07]} Bf8 {[%emt 0:00:00]} 26. Rec1 {[%emt 0:04:41]} g5 {[%emt 0:02:55]} (26... c5 $11) 27. Bxc7 $16 {[%emt 0:02:54]} Rc8 {[%emt 0:05:01]} 28. Be5 {[%emt 0:01:03]} (28. Bf4 $1 $16 Rxc1 29. Bxc1) 28... Re8 $11 {[%emt 0:00:08]} 29. Bd4 {[%emt 0:13:51] Weighted Error Value: White=0.12 (very precise) /Black=0.13 (very precise)   Mistake:       	White=2     	Black=1      OK:         	White=11    	Black=6      Best:        	White=1     	---        Strong:       	---       	Black=2} 1/2-1/2

[Event "4NCL Div 2 2024-25"]
[Site "England"]
[Date "2025.01.25"]
[Round "3.26"]
[White "Gallagher, Daniel GH"]
[Black "Blackburn, Jonathan L B"]
[Result "1/2-1/2"]
[Annotator "TA"]
[ECO "C07"]
[WhiteElo "2203"]
[BlackElo "2197"]
[PlyCount "120"]
[EventDate "2024.11.23"]
[EventType "team-tourn"]
[EventCountry "ENG"]
[SourceTitle "playchess.com"]
[Source "ChessBase"]
[SourceQuality "1"]
[TimeControl "40/6000+30:3000+30"]

{[%evp 11,120,10,14,0,12,-1,0,6,49,11,18,12,58,-31,33,20,90,91,76,61,59,44,56,68,72,39,41,45,32,35,30,21,22,25,34,12,10,12,22,14,23,12,25,0,7,0,27,0,27,6,27,0,27,0,27,0,27,27,27,12,27,0,27,0,27,0,27,0,27,27,27,27,35,0,0,-8,0,0,0,0,0,0,0,0,0,0,0,-444,-426,-431,-349,-355,-321,-236,-236,-210,-222,-403,-395,-373,-374,-215,0,-21,0,0,0,0,0,0,0]} 1. e4 {[%emt 0:10:02]} e6 {[%emt 0:10:02]} 2. d4 {[%emt 0:00:04]} d5 {[%emt 0:00:03]} 3. Nd2 {[%emt 0:00:04]} c5 {[%emt 0:00:48]} 4. Ngf3 {[%emt 0:00:07]} cxd4 {[%emt 0:01:40]} 5. Nxd4 {[%emt 0:00:06]} Ne7 {[%emt 0:00:07]} 6. exd5 {[%emt 0:08:13]} Nxd5 {[%emt 0:01:40]} 7. Ne4 {[%emt 0:00:12] C07: French Tarrasch: 3...c5, 4 Ngf3 and 4 exd5 Qxd5.} Be7 {[%emt 0:03:51]} 8. Bb5+ {[%emt 0:05:32]} (8. Bc4 O-O 9. O-O Nc6 10. Nxc6 bxc6 11. Re1) 8... Bd7 {[%emt 0:01:47]} 9. Qg4 $1 {[%emt 0:00:09][%mdl 4] is currently scoring better than 9.0-0.} O-O $146 {[%emt 0:21:08]} (9... Bxb5 10. Qxg7 (10. Nxb5 Qa5+ 11. Nbc3 g6 $11) 10... Rf8 11. Nxb5 Qa5+ 12. Nec3 $16) (9... g6 {simplifies} 10. Qe2 Qb6 11. Bxd7+ Nxd7 12. Nf3 O-O) (9... g6 10. Qe2 Bxb5 11. Qxb5+ Qd7 12. Bh6 Qxb5 13. Nxb5 Na6 14. O-O-O b6 15. c4 Nf6 {1-0 Nepomniachtchi,I (2779)-Shimanov,A (2581) Aimchess Play In op rapid 2023 (4)}) 10. Bh6 {[%emt 0:01:33][%csl Gh6][%cal Rg4g7]} (10. Bxd7 $5 Nf6 11. Nxf6+ Bxf6 12. Bb5 Qxd4 13. Qxd4 Bxd4 14. c3 $14) 10... Bf6 {[%emt 0:04:14]} 11. O-O-O {[%emt 0:09:40]} Be5 {[%emt 0:18:48]} (11... Nc6 $11) 12. Bxd7 {[%emt 0:21:41]} (12. f4 $1 $14 Ne3 13. Qh3 Bxd4 14. Rxd4) 12... Qxd7 {[%emt 0:03:15]} (12... Nxd7 $15 13. f4 (13. Nxe6 Qb6 $17) 13... Ne3) 13. Nf3 $14 {[%emt 0:07:44]} Qc7 {[%emt 0:11:42]} (13... f5 $11 {remains equal.} 14. Nxe5 fxg4 15. Nxd7 Nxd7) 14. Nxe5 $16 {[%emt 0:09:54] A sharp opening} Qxe5 {[%emt 0:00:10]} 15. f4 {[%emt 0:04:48]} f5 $1 {[%emt 0:00:58]} 16. Qg3 {[%emt 0:04:13] Chess con chili.} Qc7 {[%emt 0:00:48] [#]} 17. Nc5 {[%emt 0:01:12]} Rf6 {[%emt 0:02:20]} (17... Qxc5 18. Qxg7#) 18. Bg5 {[%emt 0:06:23][%cal Bh6g5,Bg5f6,Bf6e5][%mdl 32] White has more active pieces. The black rooks are passive.} (18. Rhe1 {feels hotter.} Rxh6 19. Nxe6 Rxe6 20. Rxe6 Ne7 21. Red6) 18... Qxc5 {[%emt 0:01:22]} 19. Rxd5 {[%emt 0:00:39]} exd5 {[%emt 0:00:08]} 20. Bxf6 {[%emt 0:00:06][%csl Gf6][%cal Rg3g7]} Qf8 {[%emt 0:00:19]} 21. Be5 {[%emt 0:10:12]} Nc6 {[%emt 0:00:19]} 22. Qb3 {[%emt 0:02:24]} Qf7 {[%emt 0:00:48]} 23. Re1 {[%emt 0:00:44] Black is weak on the dark squares} Rd8 {[%emt 0:03:34]} 24. a3 {[%emt 0:00:48]} Re8 {[%emt 0:06:55]} 25. Qd3 {[%emt 0:01:13]} Re7 {[%emt 0:01:19]} 26. Kb1 {[%emt 0:00:28]} a6 {[%emt 0:02:09]} 27. Qc3 {[%emt 0:01:33]} Qg6 {[%emt 0:01:46]} 28. g3 {[%emt 0:00:36]} Qh5 {[%emt 0:00:32]} 29. Qd3 {[%emt 0:02:02]} Qf7 {[%emt 0:00:32]} 30. Re2 {[%emt 0:00:30]} h6 {[%emt 0:01:26]} 31. Re1 {[%emt 0:00:55]} Re8 {[%emt 0:00:44]} 32. Re2 {[%emt 0:01:12]} Re7 {[%emt 0:00:11]} 33. Re1 {[%emt 0:00:05]} Re8 {[%emt 0:00:04]} 34. Re3 {[%emt 0:00:45]} Re7 {[%emt 0:00:54]} 35. Ka1 {[%emt 0:00:36]} Re8 {[%emt 0:01:12]} 36. Re2 {[%emt 0:00:09]} Re7 {[%emt 0:00:23]} 37. Re3 {[%emt 0:00:10]} Re8 {[%emt 0:01:36]} 38. Re1 {[%emt 0:00:16]} Re7 {[%emt 0:01:35]} 39. Re2 {[%emt 0:00:10]} Re8 {[%emt 0:00:05]} 40. Re3 {[%emt 0:00:44]} Re7 {[%emt 0:01:21]} 41. Kb1 {[%emt 0:32:56]} Re8 {[%emt 0:21:59]} 42. Bd6 {[%emt 0:02:08] And now Rxe8+ would win.} Re4 {[%emt 0:04:19]} 43. Bc5 {[%emt 0:01:22]} Qe6 {[%emt 0:01:06]} 44. Qd2 {[%emt 0:03:52]} Kf7 {[%emt 0:09:38]} 45. b3 {[%emt 0:00:44]} d4 {[%emt 0:02:06]} 46. Rxe4 {[%emt 0:00:58]} fxe4 {[%emt 0:04:38]} 47. Bxd4 {[%emt 0:00:08]} Nxd4 {[%emt 0:00:22]} 48. Qxd4 $11 {[%emt 0:00:05][%mdl 4096] Endgame KQ-KQ. White is a pawn up.} e3 {[%emt 0:00:05]} 49. Qd1 {[%emt 0:00:14][%mdl 8192]} (49. f5 $1 $11 {and White is okay.} Qe8 50. Qc4+ Kf6 51. Qh4+ Kxf5 52. Qh3+ (52. Qf4+ Kg6 $15) 52... Ke5 53. Qf1) 49... e2 $19 {[%emt 0:00:19]} 50. Qe1 {[%emt 0:00:01]} Qe3 {[%emt 0:00:46]} 51. c3 {[%emt 0:02:00]} Kf6 {[%emt 0:04:41]} 52. g4 {[%emt 0:05:11]} Qf3 {[%emt 0:05:20][%cal Of3f1]} (52... Qxf4 53. Qxe2 Qe5 54. Qf3+ Ke6 55. a4 $16 (55. Qxb7 Qe1+ 56. Kc2 Qe2+ 57. Kb1 Qd3+ 58. Ka2 Qc2+ 59. Ka1 Qxc3+ 60. Kb1 Qd3+ 61. Ka2 Qc2+ 62. Ka1 Qc1+ 63. Ka2 Qd2+ 64. Kb1 Qd3+ 65. Ka2 Qe2+ 66. Kb1 Qd3+ $11)) 53. Kc2 {[%emt 0:00:36]} Qxg4 {[%emt 0:01:50]} (53... Qxf4 54. Qxe2 g6 55. h4 $14) 54. Qf2 $2 {[%emt 0:01:21] [#]} (54. b4 {was worth a try.}) 54... Qf3 $1 {[%emt 0:01:00][%mdl 512]} 55. Qd4+ {[%emt 0:01:23] [#]} (55. Qxf3 $2 e1=N+ (55... e1=R $2 56. Qxb7 Re2+ 57. Kd3 $18) 56. Kb2 Nxf3 $19) 55... Kf5 $1 {[%emt 0:00:26]} 56. Qe5+ {[%emt 0:01:39]} Kg6 $2 {[%emt 0:03:23]} ({Better is} 56... Kg4 $19 {and ...Qf2 should not be overlooked} 57. Qxg7+ Kh3 (57... Kxf4 58. Qxh6+ Ke5 59. Qh8+ Ke6 60. Qe8+ Kd6 61. Qg6+ Kc7 62. Qg7+ Kc6 63. Qh6+ Kd7 64. Kd2 $11)) 57. Kd2 {[%emt 0:00:12] The position is equal.} Kh7 {[%emt 0:02:01]} 58. Qf5+ {[%emt 0:01:20]} Kh8 {[%emt 0:00:09]} 59. Qf8+ {[%emt 0:00:07]} Kh7 {[%emt 0:00:02]} 60. Qf5+ {[%emt 0:00:05]} Kh8 {[%emt 0:00:02] Weighted Error Value: White=0.26 (precise) /Black=0.20 (precise)   Loses game:     	White=1     	---        Missed win:     	---       	Black=1      Mistake:       	White=2     	Black=3      Inaccurate:     	White=8     	Black=7      OK:         	White=17    	Black=14     Best:        	White=4     	Black=4      Strong:       	---       	Black=2      Brilliant:      	White=1     	Black=1} 1/2-1/2

[Event "4NCL Div 2 2024-25"]
[Site "England"]
[Date "2025.01.25"]
[Round "3.27"]
[White "Jones, Steven A"]
[Black "Goh, Jinghan Cameron"]
[Result "1-0"]
[Annotator "TA"]
[ECO "B43"]
[WhiteElo "2175"]
[BlackElo "2017"]
[PlyCount "69"]
[EventDate "2024.11.23"]
[EventType "team-tourn"]
[EventCountry "ENG"]
[SourceTitle "playchess.com"]
[Source "ChessBase"]
[SourceQuality "1"]
[TimeControl "40/6000+30:3000+30"]

{[%evp 14,69,37,17,23,25,29,4,49,27,61,60,102,46,127,125,118,81,81,93,115,61,150,89,209,193,194,126,123,116,120,106,122,66,53,37,40,27,56,8,97,22,16,18,20,0,0,0,21,0,0,-104,23,-21,651,650,29976,29977]} 1. e4 {[%emt 0:12:14]} c5 {[%emt 0:10:06]} 2. Nf3 {[%emt 0:00:37]} e6 {[%emt 0:00:07]} 3. d4 {[%emt 0:00:15]} cxd4 {[%emt 0:00:08]} 4. Nxd4 {[%emt 0:00:04]} a6 {[%emt 0:00:05]} 5. Nc3 {[%emt 0:01:03]} b5 {[%emt 0:00:18]} 6. Bd3 {[%emt 0:00:37]} Bb7 {[%emt 0:00:54] outshines the older 6...Qb6.} 7. O-O {[%emt 0:01:29]} Qc7 {[%emt 0:00:49]} 8. Qe2 {[%emt 0:04:59]} Bd6 {[%emt 0:14:03] B43: Sicilian: Kan Variation: 5 Nc3.} 9. Kh1 {[%emt 0:02:35]} Nc6 {[%emt 0:05:38]} 10. Nxc6 {[%emt 0:02:39]} Bxc6 $146 {[%emt 0:08:04] The position is equal.} (10... dxc6 11. a4 Nf6 12. f4 e5 13. f5 h6 14. Be3 O-O 15. Rf3 Rfe8 16. Rg3 Kh7 {0-1 Mora Moron,J (2161)-Zuluaga Mancilla,C (2230) Bogota El Tablazo op-A 2022 (3)}) 11. f4 {[%emt 0:02:09]} (11. a4 $5) 11... b4 {[%emt 0:06:47] [#]} 12. Nd5 {[%emt 0:03:07]} Qb7 {[%emt 0:02:27][%cal Of7f5]} (12... Bxd5 13. exd5) 13. Ne3 {[%emt 0:11:46]} (13. f5 $16) 13... Be7 {[%emt 0:02:26]} (13... Bc7 $14) 14. Nc4 $1 $16 {[%emt 0:00:31]} Qc7 {[%emt 0:13:12]} 15. e5 {[%emt 0:04:45]} g6 {[%emt 0:08:07]} 16. a3 {[%emt 0:04:37]} a5 {[%emt 0:09:20][%cal Ba6a5,Ba5b4][%mdl 32] [#]} 17. f5 {[%emt 0:04:25]} exf5 {[%emt 0:07:10]} ({Black should try} 17... gxf5 $14 18. Bf4 h5) 18. Bf4 {[%emt 0:07:26]} (18. axb4 $1 axb4 19. Be3) 18... Qb7 {[%emt 0:05:31]} (18... Qd8 $16) 19. axb4 $1 $18 {[%emt 0:03:30]} axb4 {[%emt 0:03:06][%csl Ob4,Od7,Of7] Black has weak pawns} 20. Nd6+ {[%emt 0:05:15]} (20. Na5 $18 Rxa5 21. Rxa5) 20... Bxd6 $16 {[%emt 0:00:07]} 21. exd6+ {[%emt 0:00:11]} Kf8 {[%emt 0:01:09] Black is weak on the dark squares} 22. Rxa8+ $1 {[%emt 0:04:28]} Qxa8 {[%emt 0:00:08] [#]} 23. Be5 {[%emt 0:02:21]} ({White should play} 23. Bd2 $1 $16) 23... f6 $14 {[%emt 0:00:30]} 24. Bd4 {[%emt 0:00:07][%mdl 1024] White has compensation.} h5 {[%emt 0:04:56]} 25. Re1 {[%emt 0:01:42][%cal Od4f6]} Rh7 {[%emt 0:01:31]} 26. b3 {[%emt 0:05:11]} (26. Kg1 $14) 26... Bd5 {[%emt 0:02:08]} (26... h4 $11) 27. Bc5 {[%emt 0:01:37] White has more active pieces.} (27. h3 $16) 27... h4 $11 {[%emt 0:01:14]} 28. h3 $1 $36 {[%emt 0:00:20][%mdl 2048] White has some pressure.} (28. Bxb4 $2 h3 29. Qf2 hxg2+ 30. Kg1 Nh6 $19) 28... Rh5 $1 {[%emt 0:00:29]} 29. Bc4 {[%emt 0:04:17]} Be4 {[%emt 0:01:59]} 30. Be3 {[%emt 0:01:46] Wards off Rg5. This pair of bishops is nice.} (30. Bxb4 $2 Rg5 31. Rg1 Rg3 $19) 30... Nh6 {[%emt 0:01:18]} 31. Bd2 {[%emt 0:07:03]} Nf7 {[%emt 0:00:39]} 32. Qf2 {[%emt 0:00:23]} (32. Bxb4 $2 {loses.} Rg5 33. Bxf7 Rxg2 $19 (33... Kxf7 $2 34. Rg1 $19) (33... Bxg2+ $2 34. Kh2 $19)) (32. Bd3 $1 $11) 32... Ng5 {[%emt 0:01:26]} (32... Kg7 $17 {Threatens to win with ...Ne5.} 33. Be2 (33. Bxb4 Rg5 $17) 33... Rh8 34. Bxb4 Rc8) 33. Kh2 {[%emt 0:00:33] and Be2 should not be overlooked} (33. Be2 $5) 33... Qa5 $2 {[%emt 0:00:28][%mdl 8192] [#]} (33... Kg7 $11) 34. Bxg5 $1 $18 {[%emt 0:00:42][%cal Oe1e4] Threatening mate with Rxe4!.} Rxg5 {[%emt 0:00:16] [#]} 35. Rxe4 $1 {[%emt 0:00:05][%mdl 512] Weighted Error Value: White=0.27 (precise) /Black=0.68  Loses game:     	---       	Black=1      Mistake:       	White=8     	Black=5      Inaccurate:     	White=2     	Black=5      OK:         	White=5     	Black=6      Best:        	---       	Black=4      Strong:       	White=4     	Black=1} 1-0

[Event "4NCL Div 2 2024-25"]
[Site "England"]
[Date "2025.01.25"]
[Round "3.28"]
[White "Mihalik, Agoston"]
[Black "Saunders, Aron"]
[Result "1-0"]
[Annotator "TA"]
[ECO "B11"]
[WhiteElo "2133"]
[BlackElo "2106"]
[PlyCount "81"]
[EventDate "2024.11.23"]
[EventType "team-tourn"]
[EventCountry "ENG"]
[SourceTitle "playchess.com"]
[Source "ChessBase"]
[SourceQuality "1"]
[TimeControl "40/6000+30:3000+30"]

{[%evp 10,81,28,17,20,16,34,12,19,0,6,-18,-14,-14,0,-15,9,10,15,-21,27,13,37,31,81,65,75,55,60,61,53,19,55,64,52,0,22,0,0,0,42,23,32,32,34,31,24,7,37,8,97,14,10,16,37,12,81,76,68,38,114,122,489,131,500,305,294,213,29975,29976,29976,29977,29977,29978]} 1. e4 {[%emt 0:10:12]} c6 {[%emt 0:10:06]} 2. Nc3 {[%emt 0:00:11]} d5 {[%emt 0:00:05]} 3. Nf3 {[%emt 0:00:07]} Bg4 {[%emt 0:00:03]} 4. h3 {[%emt 0:00:16]} Bxf3 {[%emt 0:00:05]} 5. Qxf3 {[%emt 0:00:03]} e6 {[%emt 0:00:07]} 6. Be2 {[%emt 0:00:17]} Bc5 {[%emt 0:00:06] B11: Caro-Kann: Two Knights Variation.} 7. O-O {[%emt 0:00:26]} Nd7 {[%emt 0:01:43]} 8. Qg3 {[%emt 0:05:04]} Bd4 {[%emt 0:03:06] The position is equal.} 9. d3 {[%emt 0:01:58]} Ne7 {[%emt 0:04:53]} 10. Kh1 {[%emt 0:03:36]} O-O {[%emt 0:04:42]} 11. f4 {[%emt 0:14:00]} Qc7 $146 {[%emt 0:19:08]} (11... f5 12. Be3 Bxe3 13. Qxe3 Qb6 14. Qxb6 axb6 15. a3 b5 16. Rae1 Nc5 17. exd5 exd5 {½-½ Czebe,A (2385)-Berkes,F (2649) HUN-ch Rapid 2022 (9)}) 12. Bf3 {[%emt 0:08:55]} Rad8 {[%emt 0:08:50]} 13. Ne2 {[%emt 0:01:20]} Bb6 {[%emt 0:00:49]} 14. Bd2 {[%emt 0:18:20]} Nf6 {[%emt 0:07:21]} (14... dxe4 $142 15. dxe4 f5) 15. Qe1 {[%emt 0:04:02]} c5 {[%emt 0:06:21]} 16. g4 {[%emt 0:02:14]} c4 {[%emt 0:03:55]} (16... dxe4 $14 17. dxe4 Ne8) 17. e5 $16 {[%emt 0:08:37]} cxd3 {[%emt 0:03:05]} 18. cxd3 {[%emt 0:00:13]} (18. exf6 dxe2 19. Bxe2 gxf6 $15) 18... Ne8 {[%emt 0:02:13]} 19. Rc1 {[%emt 0:00:26]} Qd7 {[%emt 0:00:05]} 20. Bb4 {[%emt 0:07:34][%cal Bd2b4,Bb4d6,Bd6c5][%mdl 32]} Be3 {[%emt 0:06:29]} 21. Rc2 {[%emt 0:01:28]} d4 {[%emt 0:00:06]} 22. Bg2 {[%emt 0:08:51]} (22. Be4 $14 f5 23. gxf5 exf5 24. Bg2) 22... f6 {[%emt 0:05:04]} 23. Ng3 {[%emt 0:08:26]} fxe5 {[%emt 0:05:25]} 24. fxe5 {[%emt 0:00:01]} Nc7 {[%emt 0:01:43]} 25. Bd6 {[%emt 0:00:37]} (25. Bxb7 Rxf1+ 26. Nxf1 (26. Qxf1 Ncd5 $11) 26... Ncd5 27. Bxe7 Nxe7 $11) 25... Rxf1+ {[%emt 0:06:55]} 26. Nxf1 {[%emt 0:00:07]} Ncd5 {[%emt 0:00:35]} 27. Nxe3 {[%emt 0:00:41]} (27. Bxe7 Nxe7 28. Nxe3 dxe3 29. Qxe3 Qxd3 30. Qxd3 Rxd3 31. Rc7) 27... dxe3 {[%emt 0:00:58]} 28. Be4 {[%emt 0:01:16]} (28. Bxe7 Nxe7 29. Qxe3 Qxd3 30. Qxd3 Rxd3 31. Rc7) 28... Rc8 {[%emt 0:03:48]} 29. Rxc8+ {[%emt 0:01:14]} (29. Rc4 {with more complications.} Re8 30. Kg1 Ng6 31. Bxd5 exd5 32. Rc7) 29... Nxc8 {[%emt 0:02:48]} (29... Qxc8 $11 30. Bxe7 Nxe7) 30. Bc5 {[%emt 0:00:49] White is more active. This pair of bishops is nice.} (30. Bxd5 $16 exd5 31. Qxe3) 30... b6 $11 {[%emt 0:02:46]} 31. Bxe3 {[%emt 0:01:04]} Nce7 {[%emt 0:01:28]} 32. Bd2 {[%emt 0:01:57]} Nc6 {[%emt 0:00:41]} (32... Qa4 $11) 33. Qh4 $16 {[%emt 0:00:48]} g6 {[%emt 0:00:20]} 34. Qg5 {[%emt 0:00:52]} (34. Qg3 {simplifies} Qe7 35. Bxd5 exd5 36. Bf4) 34... Qf7 {[%emt 0:00:59]} (34... Nce7 $1 $14) 35. Kg2 $36 {[%emt 0:00:32][%mdl 2048] Black is under strong pressure.} Ncb4 $2 {[%emt 0:00:36][%mdl 8192]} (35... Qc7 $16) 36. a3 $2 {[%emt 0:00:46]} (36. Qd8+ $18 Kg7 37. Qd6) 36... Nc2 $2 {[%emt 0:00:24][%mdl 8192] This costs Black the game.} (36... Nc6 $16 37. h4 Qe7 38. Qxe7 Ncxe7) 37. h4 {[%emt 0:00:29][%cal Bh3h4,Bh4h5][%mdl 32] [#]} Nd4 {[%emt 0:00:26]} 38. h5 {[%emt 0:00:29][%cal Oe4d5] and Bxd5! would now be decisive} Ne2 $2 {[%emt 0:00:03]} (38... Nc6 $18 39. b4 (39. hxg6 hxg6 40. Bxg6 Qg7 $18) 39... a6 40. hxg6 hxg6 41. Bxg6 Qg7) 39. Bxd5 {[%emt 0:00:57] White mates.} ({Weaker is} 39. hxg6 Nef4+ 40. Kf1 Nxg6+ 41. Ke1 Kf8 42. Qd8+ Qe8 43. Qxe8+ Kxe8 $18) 39... exd5 {[%emt 0:00:11]} 40. Qd8+ {[%emt 0:00:17]} Qf8 {[%emt 0:00:13]} 41. Qxd5+ {[%emt 0:50:35] Weighted Error Value: White=0.37/Black=0.64  Loses game:     	---       	Black=2      Missed win:     	White=1     	---        Mistake:       	White=2     	Black=6      Inaccurate:     	White=5     	Black=2      OK:         	White=6     	Black=14     Best:        	White=3     	---} 1-0